Cogmind - Beta 13 @@@ ROGUE MODE // 2024.04.25 @ 17:26:11 Player: Gabe+Kate4EVR Result: Destroyed by G-47 Trooper with Particle Gun Performance ------------- Evolutions (2) 1000 Regions Visited (5) 1000 Robots Destroyed (19) 95 Value Destroyed (719) 719 Prototype IDs (1) 20 Alien Tech Used (0) 0 Bonus (-112) -112 TOTAL SCORE: 2722 Bonus ------- Friendly Fire -112 Cogmind --------- Core Integrity 0/550 Matter 285/300 Energy 410/410 System Corruption 4% Temperature Cool (51) Movement Walking (120) Location -8/Storage Parts ------- > --- POWER (1) -------- Light Nuclear Core > --- PROPULSION (4) --- Aluminum Leg Aluminum Leg > --- UTILITY (4) ------ Improved Heat Sink High-capacity Battery > --- WEAPON (2) ------- Particle Gun > --- INVENTORY (5) ---- Ion Engine Light Ion Engine Peak State ------------ > --- POWER ------------ Improved Ion Engine > --- PROPULSION ------- Aluminum Leg Aluminum Leg Aerolev Unit > --- UTILITY ---------- Small Storage Unit High-capacity Battery Improved Terrain Scan Processor Seismic Detector > --- WEAPON ----------- Medium Laser Shotgun > --- INVENTORY -------- Ion Engine Light Ion Engine Terrain Scanner Small Laser Ion Cannon Heavy Assault Rifle Shotgun Shotgun [Rating: 18] Favorites ----------- Power Ion Engine Engine Ion Engine Power Core Light Nuclear Core Propulsion Aluminum Leg Leg Aluminum Leg Hover Unit Aerolev Unit Utility High-capacity Battery Device Drone Bay Storage High-capacity Battery Processor Improved Terrain Scan Processor Weapon Medium Laser Energy Gun Medium Laser Energy Cannon Ion Cannon Ballistic Gun Light Assault Rifle Build | -11 -10 -10 -10 -8 -8 ------- Run | Yrd Mat Min Sub Mat Sto Slots Evolved 4 | . . . . 4 . Power . | . . . . . . Propulsion 2 | . . . . 2 . Utility 2 | . . . . 2 . Weapon . | . . . . . . Parts Attached 34 | 6 2 . . 12 14 Power 4 | 1 . . . 1 2 Engine 3 | 1 . . . 1 1 Core 1 | . . . . . 1 Reactor . | . . . . . . Propulsion 5 | 2 . . . 1 2 Treads . | . . . . . . Leg 4 | 2 . . . . 2 Wheel . | . . . . . . Hover 1 | . . . . 1 . Flight . | . . . . . . Utility 12 | 1 2 . . 3 6 Device 9 | . 1 . . 2 6 Storage 2 | 1 1 . . . . Processor 1 | . . . . 1 . Hackware . | . . . . . . Protection . | . . . . . . Artifact . | . . . . . . Weapon 13 | 2 . . . 7 4 Energy Gun 3 | 1 . . . . 2 Energy Cannon 2 | . . . . 2 . Ballistic Gun 8 | 1 . . . 5 2 Ballistic Cannon . | . . . . . . Launcher . | . . . . . . Special Weapon . | . . . . . . Impact Weapon . | . . . . . . Slashing Weapon . | . . . . . . Piercing Weapon . | . . . . . . Special Melee Weapon . | . . . . . . Unidentified Prototypes 1 | . . . . 1 . Parts Lost 19 | . . . . 12 7 Power 1 | . . . . 1 . Propulsion 3 | . . . . 3 . Utility 7 | . . . . 3 4 Weapon 8 | . . . . 5 3 Highest Loss Streak 7 | . . . . 7 4 To Critical Strikes . | . . . . . . Average Slot Usage (%) 67 | . 85 85 85 67 45 Engine 4 | . 4 . . 4 8 Leg 15 | . 28 28 28 13 . Device 5 | . 1 . . 6 10 Storage 18 | . 22 28 28 17 9 Processor 1 | . . . . 4 . Energy Gun 10 | . 14 14 14 6 8 Ballistic Gun 10 | . 14 14 14 9 8 Naked Turns . | . . . . . . Heaviest Build 26 | 13 14 12 12 22 26 Greatest Support 20 | 20 20 20 20 20 20 Greatest Overweight (x) 8 | . . . . 6 8 Average Overweight (x) . | . . . . 1 4 Largest Inventory Capacity 8 | 8 8 8 8 8 5 Average Capacity 7 | 6 8 8 8 7 5 Most Carried 8 | 2 4 4 4 8 4 Average Carried 3 | 1 3 4 4 6 1 Final Capacity 8 | 8 8 8 8 5 5 Final Carried 5 | 2 4 4 4 5 2 Class Distribution -------------------- 100% | Mutant Dominant Class ---------------- Mutant | -10/Materials Mutant | -10/Mines Mutant | -10/Subcaves Mutant | -8/Materials Mutant | -8/Storage Resources | -11 -10 -10 -10 -8 -8 ----------- Run | Yrd Mat Min Sub Mat Sto Matter Collected 697 | 246 . 43 . 190 218 Remotely . | . . . . . . Salvage Created 805 | . . 104 . 298 403 Parts 34 | . . 2 . 13 19 Haulers Intercepted . | . . . . . . Recyclers Shooed 3 | . . . . 3 . Parts Field Recycled . | . . . . . . Retrieved Matter . | . . . . . . Parts Self-Destructed . | . . . . . . Prevented . | . . . . . . Kills | -11 -10 -10 -10 -8 -8 ------- Run | Yrd Mat Min Sub Mat Sto Combat Hostiles Destroyed 19 | . . 2 . 8 9 Guns 17 | . . 2 . 6 9 Cannons 2 | . . . . 2 . Classes Destroyed 5 | . . 1 . 2 2 Drone 1 | . . . . . 1 Swarmer 4 | . . . . 3 1 Grunt 8 | . . 2 . 2 4 Brawler 1 | . . . . . 1 Sentry 6 | . . . . 3 3 Best Kill Streak 5 | . . 2 . 3 5 Combat Bots Only 5 | . . 2 . 3 5 Max Kills in Single Turn 1 | . . 1 . 1 1 Gunslinging . | . . . . . . Exploded . | . . . . . . Melee . | . . . . . . Uniques/NPCs Destroyed . | . . . . . . Combat | -11 -10 -10 -10 -8 -8 -------- Run | Yrd Mat Min Sub Mat Sto Hostile Shots Fired 193 | . . 7 . 109 77 Missed 45 | . . 4 . 29 12 Damage Taken 2465 | . . 42 . 1424 999 Core 573 | . . 18 . 388 167 Absorbed by Shields . | . . . . . . Core Remaining (%) 96 | 100 . . 92 . . Volleys Fired 89 | . 1 8 . 46 34 Largest 2 | . 2 2 . 2 2 Hottest 83 | . 70 70 . 83 65 Shots Fired 146 | . 2 15 . 77 52 Gun 135 | . 2 15 . 66 52 Cannon 11 | . . . . 11 . Launcher . | . . . . . . Special . | . . . . . . Kinetic 87 | . 1 8 . 46 32 Thermal 59 | . 1 7 . 31 20 Explosive . | . . . . . . Electromagnetic . | . . . . . . Robot Hit Streak 17 | . . 6 . 11 17 Robot Miss Streak 4 | . 2 3 . 4 2 Penetration Max . | . . . . . . Secondary Targets 3 | . . 1 . . 2 Max Gunslinging Chain 1 | . . 1 . . 1 Shots Hit Robots 100 | . . 9 . 51 40 Core Hits 44 | . . 6 . 17 21 Critical Kills . | . . . . . . Critical Parts Destroyed . | . . . . . . Critical Strikes 1 | . . . . 1 . Burn 1 | . . . . 1 . Melee Attacks . | . . . . . . Impact . | . . . . . . Slashing . | . . . . . . Piercing . | . . . . . . Sneak Attacks . | . . . . . . Combat Hostiles . | . . . . . . Follow-up Attacks . | . . . . . . Damage Inflicted 1547 | . . 87 . 823 637 Guns 1361 | . . 87 . 637 637 Cannons 186 | . . . . 186 . Explosions . | . . . . . . Melee . | . . . . . . Ramming . | . . . . . . Kinetic 965 | . . 37 . 476 452 Thermal 582 | . . 50 . 347 185 Explosive . | . . . . . . Electromagnetic . | . . . . . . Impact . | . . . . . . Slashing . | . . . . . . Piercing . | . . . . . . Highest Corruption 4 | . . . . . 4 Average Corruption 4 | . . . . . 4 Corruption Purged . | . . . . . . Corruption Blocked . | . . . . . . Effects 9 | . . . . . 9 Message Errors 3 | . . . . . 3 Matter Fused 2 | . . . . . 2 Energy Discharges 2 | . . . . . 2 Data Loss (minor) 1 | . . . . . 1 Alerts 1 | . . . . . 1 Overload Shots . | . . . . . . Overflow Damage 14 | . . . . 14 . Projectiles 14 | . . . . 14 . Explosions . | . . . . . . Melee . | . . . . . . Knockbacks . | . . . . . . Impact . | . . . . . . Kinetic . | . . . . . . Secondary . | . . . . . . Self-Inflicted Damage . | . . . . . . Shots . | . . . . . . Rammed . | . . . . . . Targets Rammed . | . . . . . . Kicked . | . . . . . . Crushed . | . . . . . . Highest Temperature 72 | . 20 72 . 25 31 Average Temperature 17 | . 15 38 . 10 12 Received Heat Transfer 924 | . . 42 . 342 540 Siege Activations . | . . . . . . Robots Corrupted . | . . . . . . Combat Hostiles . | . . . . . . Parts Fried . | . . . . . . Impact Corruptions . | . . . . . . Robots Melted . | . . . . . . Combat Hostiles . | . . . . . . Parts Melted 2 | . . . . 2 . Heat Transferred 1411 | . . 148 . 851 412 Parts Sabotaged . | . . . . . . Parts Stolen . | . . . . . . Parts Stripped . | . . . . . . Power Chain Reactions . | . . . . . . Alert | -11 -10 -10 -10 -8 -8 ------- Run | Yrd Mat Min Sub Mat Sto Peak Influence 145 | . 30 61 . 145 130 Initial 44 | . . 11 . . 44 Average 41 | . 12 20 . 75 44 Maximum Alert Level . | . . . . . . Low Security (%) 100 | 100 100 100 . 100 100 Level 1 . | . . . . . . Level 2 . | . . . . . . Level 3 . | . . . . . . Level 4 . | . . . . . . Level 5 . | . . . . . . High Security . | . . . . . . Max Security . | . . . . . . Squads Dispatched 6 | . . . . 3 3 Investigation 1 | . . . . 1 . Extermination . | . . . . . . Reinforcement 5 | . . . . 2 3 Assault . | . . . . . . Garrison . | . . . . . . Intercept . | . . . . . . Searches Triggered . | . . . . . . Construction Impeded . | . . . . . . Haulers Reinforced . | . . . . . . Active Scanning Responses . | . . . . . . Cargo Convoy Interrupts . | . . . . . . Stealth | -11 -10 -10 -10 -8 -8 --------- Run | Yrd Mat Min Sub Mat Sto Distress Signals 8 | . . . . 4 4 Communications Jammed . | . . . . . . Distress Signals . | . . . . . . Times Spotted 38 | . 2 2 2 19 13 Peak Tracking Total 8 | . 3 2 2 8 5 Tactical Retreats 2 | . . . . 2 . Traps | -11 -10 -10 -10 -8 -8 ------- Run | Yrd Mat Min Sub Mat Sto Traps Triggered 1 | . . . . 1 . Indirectly . | . . . . . . Trap Hack Attempts . | . . . . . . Triggered . | . . . . . . Disarmed . | . . . . . . Reprogrammed . | . . . . . . Reused . | . . . . . . Traps Extracted . | . . . . . . Installed . | . . . . . . Triggered . | . . . . . . Machines | -11 -10 -10 -10 -8 -8 ---------- Run | Yrd Mat Min Sub Mat Sto Machines Disabled 1 | . . . . 1 . Max in Single Turn 1 | . . . . 1 . Machines Repaired . | . . . . . . Machines Dismantled . | . . . . . . Machines Sabotaged . | . . . . . . Overloaded Fab Kills . | . . . . . . Hacking | -11 -10 -10 -10 -8 -8 --------- Run | Yrd Mat Min Sub Mat Sto Machines Accessed 2 | . 1 . . . 1 Terminals 2 | . 1 . . . 1 Fabricators . | . . . . . . Repair Stations . | . . . . . . Recycling Units . | . . . . . . Scanalyzers . | . . . . . . Garrison Access . | . . . . . . Total Hacks 4 | . 3 . . . 1 Successful 1 | . . . . . 1 Failed 3 | . 3 . . . . Catastrophic 2 | . 2 . . . . Database Lockouts . | . . . . . . Manual . | . . . . . . Terminals 4 | . 3 . . . 1 Fabricators . | . . . . . . Repair Stations . | . . . . . . Recycling Units . | . . . . . . Scanalyzers . | . . . . . . Garrison Access . | . . . . . . Terminal Hacks 1 | . . . . . 1 Open Door 1 | . . . . . 1 Fabricator Hacks . | . . . . . . Repair Station Hacks . | . . . . . . Recycling Unit Hacks . | . . . . . . Scanalyzer . | . . . . . . Garrison Access Hacks . | . . . . . . Unauthorized Hacks . | . . . . . . Terminals . | . . . . . . Fabricators . | . . . . . . Repair Stations . | . . . . . . Recycling Units . | . . . . . . Scanalyzers . | . . . . . . Garrison Access . | . . . . . . Data Cores Recovered . | . . . . . . Used . | . . . . . . Hacking Detections 1 | . 1 . . . . Full Trace Events 1 | . 1 . . . . Feedback Events . | . . . . . . Feedback Blocked . | . . . . . . Robot Schematics Acquired . | . . . . . . Robots Built . | . . . . . . Authchips . | . . . . . . Time . | . . . . . . Total Robot Build Rating . | . . . . . . Part Schematics Acquired . | . . . . . . Parts Built . | . . . . . . Authchips . | . . . . . . Time . | . . . . . . Total Part Build Rating . | . . . . . . Parts Repaired . | . . . . . . Time . | . . . . . . Parts Recycled . | . . . . . . Recycled Matter . | . . . . . . Retrieved Matter . | . . . . . . Retrieved Components . | . . . . . . Parts Scanalyzed . | . . . . . . Part Schematics Acquired . | . . . . . . Parts Damaged . | . . . . . . Bothacking | -11 -10 -10 -10 -8 -8 ------------ Run | Yrd Mat Min Sub Mat Sto Used RIF Installer . | . . . . . . Robots Hacked . | . . . . . . Non-combat . | . . . . . . Combat . | . . . . . . Robot Hacks Applied . | . . . . . . Relay Couplers Released . | . . . . . . Fabnet Peak Effective % . | . . . . . . Robots Rewired . | . . . . . . Allies Hacked . | . . . . . . Hacks Repelled . | . . . . . . Allies | -11 -10 -10 -10 -8 -8 -------- Run | Yrd Mat Min Sub Mat Sto Total Allies . | . . . . . . Largest Group . | . . . . . . Highest-Rated Group . | . . . . . . Highest-Rated Ally . | . . . . . . Total Orders 3 | . . . . . 3 EXPLORE 3 | . . . . . 3 Ally Attacks . | . . . . . . Total Damage . | . . . . . . Kills . | . . . . . . Allies Corrupted . | . . . . . . Allies Melted . | . . . . . . Intel | -11 -10 -10 -10 -8 -8 ------- Run | Yrd Mat Min Sub Mat Sto Robot Analysis Total . | . . . . . . Derelict Logs Recovered 1 | . . 1 . . . Drone Launches 19 | . . . . . 19 Drone Recoveries 7 | . . . . . 7 Exploration | -11 -10 -10 -10 -8 -8 ------------- Run | Yrd Mat Min Sub Mat Sto Turns Passed 2189 | 75 95 767 8 578 666 Spaces Moved 871 | 57 74 378 7 232 123 Core 160 | 5 . . . 37 118 Treads . | . . . . . . Legs 711 | 52 74 378 7 195 5 Wheels . | . . . . . . Hover . | . . . . . . Flight . | . . . . . . Fastest Speed 50 | 50 120 120 120 100 120 Average Speed 160 | 113 120 120 120 181 290 Slowest Speed 450 | 120 120 120 120 350 450 Overloaded Moves . | . . . . . . Propulsion Burnouts . | . . . . . . Robots Hopped . | . . . . . . Cave-ins Triggered . | . . . . . . Exploration Rate (%) 30 | 5 18 87 2 19 51 Regions Visited 5 Branch Regions 3 Pre-discovered Areas 1 | . . 1 . . . Known Exits Taken 1 | . . . . 1 . Unknown Exits Taken 4 | 1 1 1 1 . . Scrap Searched 2 | . . 2 . . . Spaces Dug . | . . . . . . Terrain Destroyed . | . . . . . . Melee . | . . . . . . Projectile . | . . . . . . AOE . | . . . . . . Terrain Rammed . | . . . . . . Walls Destroyed . | . . . . . . Machines Disabled . | . . . . . . Actions | -11 -10 -10 -10 -8 -8 --------- Run | Yrd Mat Min Sub Mat Sto Total 1513 | 64 78 678 6 312 375 Wait 508 | . . 293 . 18 197 Move 866 | 56 73 377 6 231 123 Hop . | . . . . . . Pick Up 5 | 2 . . . 3 . Fast Attach 20 | 6 2 . . 5 7 Attach 8 | . . . . 3 5 Detach 3 | . 2 . . 1 . Swap 6 | . . . . 4 2 Drop 1 | . . . . 1 . Fire 89 | . 1 8 . 46 34 Melee . | . . . . . . Ram . | . . . . . . Kick . | . . . . . . Crush . | . . . . . . Escape Stasis . | . . . . . . Rewire . | . . . . . . Trap . | . . . . . . Miscellaneous 7 | . . . . . 7 Route ------- -11/Scrapyard -10/Materials -10/Mines (discovered 3 exits: [*Mat x2] / [*Sub]) -10/Subcaves -8/Materials -8/Storage History --------- Turn | Location | Event 47 | -11/Scrapyard | Discovered new exit (range 15) 76 | -11/Scrapyard | Entered Materials 162 | -10/Materials | Discovered new exit (range 6) 171 | -10/Materials | Entered Mines 171 | -10/Mines | Discovered new exit (range 10) 295 | -10/Mines | Discovered new exit (range 9) 302 | -10/Mines | Build established: Mutant 402 | -10/Mines | Learned 4 Materials zone layouts 623 | -10/Mines | Learned location of Storage (-8) 933 | -10/Mines | Discovered new exit (range 4) 938 | -10/Mines | Entered Subcaves 938 | -10/Subcaves | Discovered new exit (range 8) 946 | -10/Subcaves | Entered Materials 946 | -8/Materials | Evolved 4 slots: Propulsion x2, Utility x2 947 | -8/Materials | Identified exit to Storage 1408 | -8/Materials | Lost 4 parts (1p2n1w) 1512 | -8/Materials | Core integrity fell below 50% 1524 | -8/Materials | Entered Storage 1551 | -8/Storage | Lost 7 parts (1n3u3w) 1727 | -8/Storage | Lost 5 allies 1766 | -8/Storage | Core integrity fell below 20% 1814 | -8/Storage | Lost 4 parts (3u1w) 2190 | -8/Storage | Destroyed by G-47 Trooper with Particle Gun Last Messages --------------- 02062_ System corrupted: Matter fused (-5). 02089_ A2 AMC#GBOUN2MLUHPK0B Y6IVL2I TOGEFF&X 02126_ Sml. Laser destroyed. 02140_ Critical hit (Burn: +37). 02143_ G-47 Trooper destroyed. 02145_ Drone Bay destroyed. 02146_ OS8/GMVV:QEC4P UX92J,5C P 02155_ Critical hit (Burn: +37). 02157_ G-47 Trooper destroyed. 02159_ Acquired 40 matter. 02163_ Acquired Particle Gun. 02165_ Acquired 10 matter. 02172_ System corrupted: Component data lost. 02175_ Acquired Aluminum Leg. 02176_ Acquired 10 matter. 02180_ Acquired Aluminum Leg. 02182_ Acquired 10 matter. 02187_ Hvy. Assault Rifle destroyed. 02187_ Acquired Imp. Heat Sink. 02188_ Critical hit (Burn: +37). Map ----- +----------------------------------------------------+ | ######## #?# #????????????? | | #####+##????????????? | | #####T#??????? | | #########% "?????? | | ####???????# """ """ "?????? | | ???????????# """ """ #######"?????? | | ???????????# """ """ #????????????? | | ???????????# #????????????? | | ?########### #????????????? | | ?# # """ """ ""#??????????? | | ?# """ """ # """ """ T"#??????????? | | ?# """ """ # """ """ ""#??????????? | | ?? """ """ + ###??????????? | | ?# # #????????????? | | ?# # #????????##??? | | ?#= ## ##"T"######??#?#### #### | | ?# ## ######???????# # | | ?# ########## #????????????# """ "T" # | | ?#??????????# ####?????????# """ # | | ???????????## ##T#??#??????# """ # | | ??????###### # "==#??????# """ # | | ####### + ==#??????# """ # | | % T # "==#??????# # | | #######+#### %###??#??????# # | | ????# ### ##???############+#####? | | ????# #?# #????# m @ % # #???? | | ????# #?#% #????# gg % # #???? | | ????# """ #?# #????# """""" # #???? | | ???## """ ### ##???# "????" # #???? | | ???# """ ## #???# "?? ?" + #???? | | ???## + ##### """""" # #???? | | ????#! ## T + % % # #???? | | ????# "" ## ##### #% ##??# | | ????# Y" ###/################# #???? | | ????# "" # ##??????#??# #???? | | ????# # """ !!! #???????#?# #???? | | ????####### """ !!!##??##?????# #???? | | ??????????# """ !! ####???##### #???? | | ??????????# #?#???##% %# #???# | | ??????????# """ "" #?#?#?#T +% #???? | | ??????????# """ Y" #????### ### #???? | | ??????????# """ "" #??#??#! %## #???? | | ??????????# #?????#! ## #???? | | ??????????#??#######?????#!% ## #???? | | ??????????????##????????##! !## #???? | | ????????????????##???????###### ##??? | | ?????????????##??##?????##????# #?#?# | | ??????????????????????????????# #??#? | | ??????????????#???#?#??#????#?# #??#? | | ????????????????????#??##?????# ##??? | +----------------------------------------------------+ Best States ------------- Heat Dissipation 45 Energy Generation 14 Energy Capacity 515 Matter Stores 300 Matter Capacity 300 Sight Range 16 Terrain Scan Range 14 Terrain Scan Density 110 Evasion (%) 55 Item Schematics ----------------- None Robot Schematics ------------------ None Fabricated ------------ Nothing Alien Tech Used ----------------- None Achievements -------------- None Challenges ------------ None Game ------ Seed BombSmartbombImmobilizer Manual? 0 Play Time 00:13:35 Cumulative 124.2 hours Start 2024.04.25 @ 13:15:21 End 2024.04.25 @ 17:26:11 Sessions 1 Manual Loads 0 Difficulty Rogue Special Mode None Game No. 255 Rogue 255 Adventurer 0 Explorer 0 Win Type - Total 0 Types 0/0/0/0/0/0/0/0/0 Lore% 34 Gallery% 54 Achievement% 37 Wizard Run 0 Options --------- Layout 0 ASCII 0 Keyboard 1 Movement Numpad Keybinds 0 Fullscreen 2 Font 18/X11 Map View 76x50 Zoom Use 0% Tactical HUD 1 Map Filters NONE Filters NONE Steam 1 RUN: eddf4f45-317d-45a4-a30b-ce2b5214ec68